bitfinex-derivatives/quotes_ETHF0:USTF0_20250912
["timestamp","ask_amount","ask_price","bid_price","bid_amount"]
[1757648821395,0.7038,4505.8,4505.3,0.2906]
[1757648821593,0.707,4505.7,4505.6,0.4906]
[1757648821788,0.707,4505.7,4505.6,0.6841]
[1757648825301,1.28121789,4505.7,4505.6,0.6841]
[1757648826492,1.28121789,4505.7,4505.6,0.2]
[1757648826691,1.28121789,4505.7,4505.6,0.4906]
[1757648826892,1.28121789,4505.7,4505.6,0.6841]
[1757648828007,1.28121789,4505.7,4505.1,0.5166]
[1757648828306,0.707,4505.2,4505.1,0.9101]
[1757648829804,0.707,4505.2,4505.1,0.2]
[1757648830009,0.707,4505.2,4505.1,0.4906]
[1757648832214,0.707,4505.2,4504.7,0.2906]
[1757648832416,0.4125,4504.8,4504.7,0.2906]
[1757648832615,0.707,4504.8,4504.7,0.4906]
[1757648833108,1.28240202,4504.8,4504.2,0.226]
[1757648833302,0.707,4504.8,4504.2,0.226]
[1757648833802,0.707,4504.8,4504.3,0.2906]
[1757648834610,0.707,4504.8,4504.1,0.226]
[1757648834809,0.707,4504.8,4504.2,0.2906]
[1757648835009,0.707,4504.8,4504.0,0.226]
[1757648835010,0.1998,4504.1,4504.0,0.226]
[1757648835206,0.707,4504.1,4504.0,0.4906]
[1757648835503,0.1998,4504.1,4504.0,0.8115]
[1757648837920,0.2945,4504.9,4504.1,0.2906]
[1757648838117,0.1998,4504.9,4504.8,0.6841]
[1757648838426,0.2945,4505.4,4504.9,0.2906]
[1757648838619,0.707,4505.4,4505.3,0.4906]
[1757648838820,1.28193658,4505.4,4505.3,0.4906]
[1757648839015,8.8738176,4505.4,4502.5,0.1274]
[1757648839324,8.8738176,4505.4,4502.0,4.08418173]
[1757648839325,5.44511603,4502.8,4502.0,0.1274]
[1757648839514,1.19264213,4502.3,4502.0,0.1274]
[1757648839823,1.19264213,4502.1,4501.0,0.1274]
[1757648840018,4.26022649,4501.7,4501.0,0.1274]
[1757648840225,0.77486789,4501.6,4501.5,0.1274]
[1757648840819,4.77486789,4501.6,4501.5,0.1274]
[1757648841116,4.77486789,4501.6,4501.0,0.1274]
[1757648841322,0.77486789,4501.5,4501.1,0.2906]
[1757648841625,0.77486789,4501.4,4501.1,0.2906]
[1757648841819,0.77486789,4501.3,4501.1,0.2906]
[1757648842021,0.19993131,4501.2,4501.1,0.2906]
[1757648842221,8.26022649,4501.7,4501.5,0.1274]
[1757648842524,0.82304906,4501.6,4501.5,0.618]
[1757648842823,0.229,4501.9,4501.6,0.2]
[1757648843018,0.229,4501.9,4501.7,0.4906]
[1757648843324,0.229,4501.9,4501.8,0.2906]
[1757648843529,0.43576536,4501.9,4501.8,0.2906]
[1757648843719,1.05133974,4501.9,4501.8,0.2906]
[1757648843916,5.05133966,4501.9,4501.8,0.2906]
[1757648846019,0.82233966,4501.9,4501.8,0.4906]
[1757648846220,0.8445743,4501.9,4501.8,0.4906]
[1757648846922,0.8445743,4501.9,4501.8,0.2906]
[1757648847127,0.8445743,4501.9,4501.8,0.4906]
[1757648848022,5.05082165,4501.9,4501.5,0.1274]
[1757648848325,5.05082165,4501.9,4501.0,0.1274]
[1757648848326,4.26022649,4501.6,4501.0,0.1274]
[1757648848525,0.82173677,4501.5,4501.1,0.3149]
[1757648848726,0.6155743,4501.4,4501.1,0.3149]
[1757648848922,0.8445743,4501.3,4501.1,0.3149]
[1757648849122,0.6155743,4501.2,4501.1,0.3149]
[1757648850629,0.8445743,4501.2,4501.1,0.5091]
[1757648850816,0.8445743,4501.2,4501.1,0.7173]
[1757648853532,4.8445743,4501.2,4501.1,0.3149]
[1757648855533,5.0662743,4501.2,4501.1,0.3149]
[1757648858325,1.0662743,4501.2,4501.0,0.1274]
[1757648858527,2.25891643,4501.2,4501.0,0.1274]
[1757648858825,0.6155743,4501.1,4501.0,0.4423]
[1757648860926,0.6455743,4501.1,4501.0,0.4423]
[1757648861129,0.84137198,4501.1,4501.0,0.4423]
[1757648863222,0.6455743,4501.1,4501.0,0.4423]
[1757648863833,0.8745743,4501.1,4501.0,0.4423]
[1757648864232,0.1478,4500.6,4500.5,0.5298]
[1757648864532,0.3768,4500.6,4500.5,0.5298]
[1757648864731,0.9923743,4500.6,4500.5,0.5298]
[1757648864922,1.0223743,4500.6,4500.5,0.5298]
[1757648865126,1.22111317,4500.6,4500.5,0.5298]
[1757648866228,1.22111317,4500.6,4500.5,0.8447]
[1757648866532,2.80304735,4500.6,4500.5,0.8447]
[1757648867234,1.22111317,4500.6,4500.5,0.8447]
[1757648867544,1.22158469,4500.6,4500.5,0.8447]
[1757648868227,3.19379942,4500.6,4500.0,0.1274]
[1757648868427,1.64338469,4500.5,4500.4,0.1942]
[1757648868626,1.64338469,4500.5,4500.4,0.4024]
[1757648868932,1.67338469,4500.5,4500.4,0.4024]
[1757648869130,1.89508469,4500.5,4500.4,0.4024]
[1757648869335,3.86729942,4500.5,4500.4,0.4024]
[1757648869542,1.89508469,4500.5,4500.4,0.4024]
[1757648869727,1.56908469,4500.5,4500.4,0.4024]
[1757648869928,1.06648469,4500.5,4500.4,4.4024]
[1757648870226,0.3053,4500.7,4500.4,4.6246]
[1757648870537,0.1191,4500.5,4500.4,4.4024]
[1757648870737,0.4244,4500.5,4500.4,4.4024]
[1757648872232,0.4244,4500.5,4500.4,4.67420032]
[1757648877142,0.1191,4501.0,4500.4,4.67420032]
[1757648877342,0.1191,4501.0,4500.5,4.27180032]
[1757648877543,0.1191,4501.0,4500.6,0.27180032]
[1757648877743,0.1191,4501.0,4500.7,0.27180032]
[1757648878046,0.1191,4501.0,4500.8,0.49980032]
[1757648878047,0.4124,4501.0,4500.8,0.49980032]
[1757648878247,0.4124,4501.0,4500.9,0.27180032]
[1757648878446,0.4124,4501.0,4500.9,4.27180032]
[1757648878648,0.1072,4501.5,4500.9,4.27180032]
[1757648878842,0.2933,4501.9,4501.0,4.27180032]
[1757648879146,0.2933,4501.9,4501.1,0.27180032]
[1757648879344,0.2933,4501.9,4501.2,0.27180032]
[1757648879549,0.0462,4502.0,4501.3,0.49980032]
[1757648879746,0.0462,4502.0,4501.4,0.27180032]
[1757648879942,0.3395,4502.0,4501.5,0.27180032]
[1757648880250,0.0462,4502.0,4501.6,24.97180032]
[1757648880439,0.2933,4502.3,4501.7,0.27180032]
[1757648880735,0.2933,4501.9,4501.8,0.49980032]
[1757648885845,0.1191,4502.5,4501.9,0.39967]
[1757648886049,0.1191,4502.5,4502.0,0.27180032]
[1757648886247,0.2933,4502.4,4502.1,0.27180032]
[1757648886449,0.2933,4502.4,4502.2,25.19980032]
[1757648886645,0.2933,4502.4,4502.3,0.27180032]
[1757648886845,0.1191,4502.5,4502.3,4.27180032]
[1757648887053,0.4124,4502.5,4502.4,0.27180032]
[1757648887448,0.4124,4502.5,4502.4,0.49980032]
[1757648887449,0.8288,4502.5,4502.4,0.49980032]
[1757648887756,0.8288,4502.5,4502.4,0.27180032]
[1757648888053,0.8288,4502.5,4502.4,3.2e-07]
[1757648888244,0.8288,4502.5,4502.1,0.228]
[1757648890143,0.8288,4502.5,4501.0,0.228]
[1757648890144,0.2933,4501.9,4501.0,0.228]
[1757648890340,0.2933,4500.9,4500.2,31.993]
[1757648890544,0.2933,4500.9,4500.3,0.228]
[1757648893845,0.2933,4500.9,4500.4,4.3998]
[1757648894154,0.2933,4501.2,4500.5,0.39979]
[1757648894342,0.2933,4501.2,4500.6,0.228]
[1757648894548,0.1248,4501.5,4501.0,3.71650692]
[1757648894745,0.1248,4501.5,4501.1,0.228]
[1757648894952,0.2933,4501.4,4501.1,0.228]
[1757648895350,0.2933,4501.4,4501.2,24.7]
[1757648895946,0.1248,4501.5,4501.2,24.7]
[1757648896155,0.2933,4501.4,4501.2,24.7]
[1757648896356,0.1248,4501.5,4501.2,24.7]
[1757648896560,0.2933,4501.4,4501.2,24.7]
[1757648896855,0.4181,4501.5,4501.2,24.7]
[1757648897258,0.2933,4501.4,4501.2,24.7]
[1757648897453,0.1248,4501.5,4501.2,24.7]
[1757648897755,0.7097,4501.3,4501.2,24.7]
[1757648898355,0.2933,4501.3,4501.2,24.7]
[1757648898949,0.4181,4501.5,4501.2,25.09973]
[1757648899149,0.2933,4501.9,4501.3,0.228]
[1757648899860,0.2933,4501.9,4501.4,0.28515133]
[1757648900153,0.2933,4501.9,4501.5,0.28515133]
[1757648900357,0.3368,4502.0,4501.6,0.51315133]
[1757648900551,0.2933,4501.9,4501.7,0.28515133]
[1757648900759,0.5053,4501.9,4501.8,0.28515133]
[1757648903062,0.7097,4501.9,4501.8,0.28515133]
[1757648903457,0.7097,4501.9,4501.8,0.51215133]
[1757648904858,0.1248,4503.0,4502.9,0.4024]
[1757648905057,0.1248,4504.0,4502.9,1.05425068]
[1757648905257,0.3368,4503.5,4503.4,0.4024]
[1757648905456,0.3368,4503.5,4503.4,0.91595068]
[1757648907160,0.6301,4503.5,4503.4,0.91595068]
[1757648908665,0.6301,4503.5,4503.4,0.91595562]
[1757648908853,0.4181,4503.5,4503.4,1.05425562]
[1757648909059,0.2933,4503.5,4503.4,1.05425562]
[1757648909655,0.2934,4503.9,4503.8,0.4167]
[1757648909865,0.2934,4503.9,4503.8,1.06855562]
[1757648911657,0.6988,4503.9,4503.8,0.93025562]
[1757648914073,0.6988,4503.9,4503.8,0.72675562]
[1757648914568,0.6988,4503.9,4503.8,0.93025562]
[1757648915471,0.2934,4503.9,4503.8,0.93025562]
[1757648916066,0.5015,4503.9,4503.8,0.93025562]
[1757648916273,0.6988,4503.9,4503.8,0.28555562]
[1757648916473,0.6988,4503.9,4503.8,0.51355562]
[1757648918864,0.6988,4503.9,4503.8,0.72675562]
[1757648919270,0.6988,4503.9,4503.8,0.93025562]
[1757648919470,0.6988,4503.9,4503.8,0.28555562]
[1757648919873,0.6988,4503.1,4503.0,24.7]
[1757648920072,0.6988,4503.1,4503.0,0.228]
[1757648920274,0.6988,4503.1,4503.0,0.4412]
[1757648920878,0.6988,4503.1,4503.0,0.6447]
[1757648921465,0.6988,4503.1,4502.3,31.992]
[1757648921466,0.6988,4502.4,4502.3,31.992]
[1757648921670,0.6988,4502.4,4502.3,32.22]
[1757648922081,0.6988,4502.4,4502.3,31.992]
[1757648922273,0.6988,4502.4,4502.3,32.22]
[1757648930683,0.6988,4502.4,4502.3,31.992]
[1757648930984,0.6988,4501.9,4501.8,0.4167]
[1757648931284,0.6988,4501.9,4501.8,0.6437]
[1757648931883,0.6988,4501.9,4501.8,0.92075051]
[1757648932679,0.6988,4501.9,4501.8,0.50405051]
[1757648933877,0.6988,4501.9,4501.8,0.27705051]
[1757648934082,0.6988,4501.9,4501.8,0.50405051]
[1757648935089,0.6988,4501.9,4501.8,0.71725051]
[1757648937385,0.6988,4501.9,4501.8,1.20935051]
[1757648938088,0.1235,4503.0,4502.5,0.2963]
[1757648938286,0.7234,4502.9,4502.8,0.7108]
[1757648938580,0.7234,4502.9,4502.8,0.98785051]
[1757648938781,0.7234,4502.9,4502.8,0.69155051]
[1757648939986,0.7234,4502.9,4502.8,0.4145]
[1757648940389,0.7234,4502.9,4502.8,0.69133769]
[1757648940587,0.7234,4502.9,4502.8,0.4145]
[1757648940787,0.7234,4502.9,4502.8,0.69133879]
[1757648940984,0.7234,4502.9,4502.8,0.98763879]
[1757648941780,0.7234,4502.9,4502.8,0.69133879]
[1757648941977,0.7234,4502.9,4502.8,0.98763879]
[1757648942185,0.5158,4503.4,4503.3,0.4145]
[1757648942487,0.7234,4503.9,4503.8,0.4145]
[1757648942685,0.7234,4503.9,4503.8,0.98776162]
[1757648943486,0.5158,4503.9,4503.8,0.98776162]
[1757648945887,0.7234,4503.9,4503.8,0.27696162]
[1757648946083,0.7234,4503.9,4503.8,0.48346162]
[1757648946284,0.7234,4503.9,4503.8,0.98776162]
[1757648946482,0.3125,4503.9,4503.8,0.98776162]
[1757648946682,0.5158,4503.9,4503.8,0.98776162]
[1757648947484,0.7234,4503.9,4503.8,0.98776162]
[1757648947692,0.7234,4503.9,4503.8,0.69146162]
[1757648948483,0.7234,4503.9,4503.8,0.98776162]
[1757648948791,0.5158,4503.9,4503.8,0.98776162]
[1757648950194,0.7234,4503.9,4503.8,0.31285716]
[1757648951089,0.7234,4503.9,4503.8,0.72735716]
[1757648951398,0.7234,4503.9,4503.8,1.02365716]
[1757648954804,0.7234,4503.9,4503.8,0.51935716]
[1757648956004,0.7234,4503.9,4503.8,0.51946939]
[1757648957209,0.7234,4503.9,4503.8,0.72746939]
[1757648957409,0.7234,4503.9,4503.8,1.02376939]
[1757648957609,0.5158,4503.9,4503.8,1.02376939]
[1757648959407,0.1212,4505.0,4503.8,1.02376939]
[1757648959612,0.8446,4504.5,4504.4,0.4145]
[1757648959811,0.8446,4504.5,4504.4,0.72746939]
[1757648960713,0.5158,4504.5,4504.4,1.02376939]
[1757648961112,0.8446,4504.5,4504.4,1.02376939]
[1757648961712,0.8446,4504.5,4504.4,0.31296939]
[1757648967119,5.06660001,4504.5,4502.5,2.0650319]
[1757648967315,0.2033,4503.2,4503.1,0.8108]
[1757648969719,0.3125,4503.4,4503.1,0.8108]
[1757648969921,0.3125,4503.4,4503.2,0.3033]
[1757648970112,0.5218,4503.4,4503.3,0.713]
[1757648971313,0.2093,4503.6,4503.5,0.1193]
[1757648971516,0.2093,4503.6,4503.5,0.529]
[1757648972013,0.7262,4504.4,4504.3,0.2068]
[1757648972209,1.26745152,4504.4,4504.3,0.5101]
[1757648973415,0.95095152,4504.4,4504.3,0.713]
[1757648973616,1.26745152,4504.4,4504.3,0.713]
[1757648974717,0.7262,4504.4,4504.3,0.713]
[1757648976011,0.7262,4504.4,4504.0,0.1193]
[1757648976012,0.7262,4504.4,4504.0,0.3033]
[1757648976220,0.7262,4504.4,4503.7,0.227]
[1757648976416,0.7262,4504.4,4503.8,0.3033]
[1757648979123,0.7262,4504.4,4503.9,0.27473729]
[1757648979323,0.7262,4504.4,4504.0,0.27473729]
[1757648979520,0.7262,4504.4,4504.1,0.27473729]
[1757648979721,0.7262,4504.4,4504.2,0.27473729]
[1757648979923,0.7262,4504.4,4504.3,0.27473729]
[1757648980116,1.26858738,4504.4,4504.3,0.27473729]
[1757648982627,1.26858738,4504.4,4504.3,0.78483729]
[1757648985420,1.26858738,4504.4,4504.3,0.98773729]
[1757648988434,1.26858738,4504.4,4504.3,0.27473729]
[1757648996733,0.95208738,4504.4,4504.3,0.98773729]
[1757648996935,1.26858738,4504.4,4504.3,0.98773729]
[1757648997130,1.26858738,4504.4,4504.3,0.27473729]
[1757648998335,2.56119375,4504.4,4504.3,0.27473729]
[1757649000637,2.56119375,4504.4,4504.3,0.77563729]
[1757649001028,1.49558738,4504.4,4504.3,0.77563729]
[1757649001229,1.49558738,4504.4,4504.3,0.98063729]
[1757649003140,2.78819375,4504.4,4504.3,0.27473729]
[1757649003323,1.49558738,4504.4,4504.3,0.27473729]
[1757649008336,1.49558738,4504.4,4504.3,0.77563729]
[1757649008536,1.49558738,4504.4,4504.3,0.98063729]
[1757649008740,1.26858738,4504.4,4504.3,0.98063729]
[1757649008942,1.49558738,4504.4,4504.3,0.98063729]
[1757649010144,1.26558738,4504.4,4504.3,0.98063729]
[1757649010442,0.75168738,4504.4,4504.3,0.98063729]
[1757649010645,1.06518738,4504.4,4504.3,0.98063729]
[1757649011246,1.27188738,4504.4,4504.3,0.98063729]
[1757649013641,1.27188738,4504.4,4504.3,0.27473729]
[1757649014045,1.27188738,4504.4,4504.3,0.27366127]
[1757649014440,2.3216577,4504.4,4504.3,0.27366127]
[1757649016247,2.3216577,4504.4,4504.3,0.57496127]
[1757649017246,2.3216577,4504.4,4504.3,0.77456127]
[1757649018348,2.3216577,4504.4,4504.3,0.27366127]
[1757649019637,2.3216577,4504.4,4503.9,0.30463008]
[1757649019638,2.3216577,4504.4,4503.9,0.00333008]
[1757649019844,0.7163,4503.3,4503.2,0.5009]
[1757649020039,1.76607032,4503.3,4503.2,0.5009]
[1757649020343,1.76607032,4503.3,4503.2,0.7059]
[1757649027650,0.2985,4503.6,4503.2,0.7059]
[1757649027946,0.7015,4503.6,4503.5,0.6958]
[1757649028148,1.25491746,4503.6,4503.5,0.6958]
[1757649031047,0.403,4503.2,4503.1,0.2035]
[1757649031248,0.7015,4503.2,4503.1,0.492]
[1757649034752,0.7015,4503.2,4503.1,0.6958]
[1757649035254,0.403,4503.2,4503.1,0.6958]
[1757649035757,0.2985,4503.1,4502.5,0.0694]
[1757649035956,0.403,4503.2,4502.5,0.0694]
[1757649035957,0.403,4503.2,4503.1,0.4073]
[1757649036361,0.403,4503.2,4503.1,0.6958]
[1757649036855,0.7015,4503.2,4503.1,0.6958]
[1757649040158,1.75127032,4503.2,4503.1,0.6958]
[1757649040754,1.75127032,4503.2,4502.5,0.0694]
[1757649041056,0.7015,4502.6,4502.5,0.4073]
[1757649041359,0.2985,4503.0,4502.5,0.5287]
[1757649041553,1.45277032,4503.2,4503.1,0.2035]
[1757649041752,2.30393235,4503.2,4503.1,0.492]
[1757649042362,0.55266203,4503.2,4503.1,0.6958]
[1757649042658,0.2985,4503.5,4503.2,0.2885]
[1757649042861,0.5003,4503.5,4503.4,0.4073]
[1757649043059,0.5003,4503.5,4503.4,0.6958]
[1757649044359,1.25442156,4503.5,4503.4,0.6958]
[1757649054473,0.75472156,4503.5,4503.4,0.6958]
[1757649055767,1.25442156,4503.5,4503.4,0.6958]
[1757649057881,1.25442156,4503.5,4503.4,0.492]
[1757649058471,1.37062156,4503.5,4503.4,0.2035]
[1757649058870,1.37062156,4503.5,4503.4,0.5172]
[1757649059579,1.25442156,4503.5,4503.4,0.7263]
[1757649060180,1.37062156,4503.5,4503.0,0.1214]
[1757649060372,0.8177,4503.5,4503.1,0.3137]
[1757649060574,1.04977032,4503.4,4503.1,0.3137]
[1757649060779,0.7101,4503.2,4503.1,0.3137]
[1757649061278,0.7101,4503.2,4503.1,0.5117]
[1757649061872,0.7101,4503.2,4502.6,0.3137]
[1757649062077,0.7101,4502.7,4502.6,0.7208]
[1757649068086,0.2963,4503.0,4502.7,0.3137]
[1757649068286,0.2963,4503.3,4502.7,0.3137]
[1757649068481,1.26346987,4503.2,4503.1,0.5117]
[1757649071080,1.26346987,4503.2,4502.6,0.3137]
[1757649071286,0.7101,4502.7,4502.6,0.3137]
[1757649071581,0.7101,4502.7,4502.6,0.5117]
[1757649072488,0.7101,4502.7,4502.6,0.7208]
[1757649073484,1.75987032,4502.7,4502.1,0.3137]
[1757649076386,0.7101,4502.7,4502.1,0.3137]
[1757649076581,0.1162,4502.5,4502.1,0.3137]
[1757649076790,0.7101,4502.2,4502.1,0.3137]
[1757649077086,0.7101,4502.2,4502.1,0.5117]
[1757649078586,0.7101,4502.2,4502.1,0.7208]
[1757649079082,0.1162,4503.0,4502.1,0.7208]
[1757649079288,0.84876687,4502.9,4502.2,0.3137]
[1757649079490,0.96626687,4502.8,4502.7,0.198]
[1757649079787,1.26256687,4502.8,4502.7,0.5117]
[1757649080090,0.7101,4502.8,4502.7,0.5117]
[1757649082888,0.1162,4503.5,4502.7,0.4071]
[1757649083093,0.1162,4503.5,4503.2,0.5117]
[1757649083094,0.7101,4503.3,4503.2,0.5117]
[1757649083295,1.26280579,4503.3,4503.2,0.5117]
[1757649084492,1.26280579,4503.3,4503.2,0.7208]
[1757649088692,1.51117236,4504.2,4504.0,0.416]
[1757649088897,0.1258,4504.5,4504.1,1.89375629]
[1757649089088,0.5145,4504.4,4504.3,0.6001]
[1757649089289,0.5145,4504.4,4504.3,0.416]
[1757649089785,0.5145,4504.4,4504.3,0.69037452]
[1757649092996,0.7102,4504.4,4504.3,0.69037452]
[1757649098799,0.7102,4504.4,4504.3,0.27437452]
[1757649101602,0.1258,4504.5,4503.9,0.226]
[1757649101603,0.836,4504.0,4503.9,0.226]
[1757649101804,0.836,4504.0,4503.9,0.27334521]
[1757649103100,0.836,4504.0,4503.9,0.68934521]
[1757649103403,0.6403,4504.0,4503.9,0.87344521]
[1757649106105,0.1258,4504.5,4503.9,0.87344521]
[1757649106310,0.5187,4504.5,4504.4,0.2038]
[1757649106514,0.5187,4504.5,4504.4,0.416]
[1757649106712,0.836,4504.5,4504.4,0.416]
[1757649107309,0.836,4504.5,4504.4,0.69143199]
[1757649109708,0.836,4504.5,4504.4,0.47923199]
[1757649110111,0.836,4504.5,4504.4,0.27543199]
[1757649115006,0.836,4504.5,4504.4,0.69143199]
[1757649118812,0.836,4504.5,4504.4,0.27543199]
[1757649124320,0.836,4504.5,4504.4,0.47243199]
[1757649124509,0.836,4504.5,4504.4,0.66933199]
[1757649126214,0.4431,4504.5,4504.4,0.85333199]
[1757649126416,0.3173,4504.5,4504.4,0.85333199]
[1757649127518,0.00333008,4504.8,4504.4,0.85333199]
[1757649127519,0.306,4504.7,4504.4,0.66933199]
[1757649127821,0.7131,4504.7,4504.6,0.3939]
[1757649128022,0.7131,4504.7,4504.6,0.66933199]
[1757649128215,0.7131,4504.7,4504.6,0.47243199]
[1757649128624,0.7131,4504.7,4504.6,0.66933199]
[1757649129323,0.306,4504.7,4504.6,0.85333199]
[1757649130425,0.5175,4504.7,4504.6,0.85333199]
[1757649132023,0.1016,4504.7,4504.6,0.85333199]
[1757649133332,0.2115,4504.7,4504.6,0.66933199]
[1757649133836,0.2115,4504.7,4504.6,0.96013199]
[1757649134025,0.5175,4504.7,4504.6,0.96013199]
[1757649134334,0.00333008,4504.8,4504.6,4.66933199]
[1757649134639,0.5175,4505.6,4505.5,0.3939]
[1757649134933,1.06690457,4505.6,4505.5,0.96013199]
[1757649135535,0.54940457,4505.6,4505.5,1.07903199]
[1757649135731,0.7131,4506.1,4506.0,0.3939]
[1757649136036,0.7131,4506.1,4506.0,0.96013199]
[1757649136436,0.7131,4506.1,4506.0,0.47243199]
[1757649136936,0.7131,4506.1,4506.0,0.27543199]
[1757649137525,0.7131,4506.2,4506.1,0.4878]
[1757649137735,0.7131,4506.2,4506.1,0.76323199]
[1757649138431,0.7131,4506.2,4506.1,1.81162935]
[1757649139735,0.7131,4506.2,4506.1,2.00852935]
[1757649142838,0.7131,4506.2,4506.1,1.52180682]
[1757649144044,0.7131,4506.2,4506.1,0.47340946]
[1757649146438,5.98341736,4506.2,4506.1,9.46e-06]
[1757649146639,5.98341736,4506.2,4505.1,0.2908]
[1757649146937,0.7131,4505.2,4505.1,0.4878]
[1757649150942,0.7131,4505.2,4505.1,0.6847]
[1757649151345,0.4071,4505.2,4505.1,0.6847]
[1757649151546,0.2115,4505.2,4505.1,0.6847]
[1757649152446,0.2978,4506.4,4505.2,0.3025]
[1757649152646,0.689,4505.7,4505.6,1.24939736]
[1757649152941,0.689,4505.7,4505.6,1.55189736]
[1757649153149,0.2978,4505.6,4505.4,0.3025]
[1757649153352,0.689,4505.5,4505.4,0.5035]
[1757649155846,0.689,4505.5,4505.4,0.7014]
[1757649156643,0.3912,4505.5,4505.4,0.7014]
[1757649156841,0.689,4504.7,4504.6,0.7014]
[1757649157146,0.3912,4504.7,4504.6,0.7014]
[1757649158147,0.1983,4504.7,4504.6,0.7014]
[1757649158546,0.1983,4504.7,4504.6,0.97452513]
[1757649159248,0.689,4504.7,4504.6,0.27312513]
[1757649161051,4.91099,4504.7,4503.7,0.3025]
[1757649161349,0.522,4503.8,4503.7,0.3025]
[1757649161746,1.04839736,4504.9,4503.5,0.4214]
[1757649161747,0.3912,4503.6,4503.5,0.4214]
[1757649162051,0.3912,4503.6,4503.5,0.6224]
[1757649162938,0.522,4503.6,4503.5,0.6224]
[1757649163144,0.3912,4503.6,4503.5,0.6224]
[1757649164949,0.1308,4504.4,4503.6,0.3025]
[1757649165143,0.3912,4504.4,4504.3,0.7014]
[1757649167943,1.04839736,4505.2,4504.3,0.7014]
[1757649168155,1.06893649,4505.1,4505.0,0.4204]
[1757649168355,0.522,4505.1,4505.0,0.6214]
[1757649170253,0.3912,4505.1,4505.0,0.6214]
[1757649171753,0.3912,4505.1,4505.0,0.8193]
[1757649174351,0.5217,4505.1,4505.0,0.6214]
[1757649174551,0.5217,4505.1,4505.0,0.4204]
[1757649175263,0.5217,4505.1,4505.0,0.6214]
[1757649175446,0.3912,4505.1,4505.0,0.6214]
[1757649175652,0.3912,4505.1,4505.0,0.8193]
[1757649179163,0.93911973,4505.1,4505.0,0.8193]
[1757649182355,0.74621973,4505.1,4505.0,0.8193]
[1757649182550,0.54791973,4505.1,4505.0,0.8193]
[1757649182756,0.4112,4505.6,4505.5,0.6285]
[1757649183058,0.95942775,4505.6,4505.5,0.8346]
[1757649186154,0.75142775,4505.6,4505.5,0.8346]
[1757649186356,0.54822775,4505.6,4505.5,0.8346]
[1757649194671,1.19387236,4506.5,4505.5,6.10494736]
[1757649194973,1.91513274,4508.2,4505.5,6.10494736]
[1757649194974,0.5167,4507.5,4507.4,0.7084]
[1757649195164,0.5167,4507.5,4507.4,2.03400934]
[1757649195165,0.2032,4507.5,4507.4,2.03400934]
[1757649195367,0.5167,4507.7,4507.6,0.4159]
[1757649195571,0.7247,4507.7,4507.6,0.98561198]
[1757649197070,0.7247,4507.7,4507.6,0.7084]
[1757649198572,0.34463473,4508.9,4507.7,0.2925]
[1757649198573,0.3135,4508.4,4507.7,0.2925]
[1757649198769,0.7247,4508.4,4508.3,0.5023]
[1757649199469,0.7247,4508.4,4508.3,0.2098]
[1757649200771,0.7247,4508.4,4507.6,0.2925]
[1757649200971,0.7247,4507.7,4507.6,0.5023]
[1757649201778,0.7247,4507.7,4507.3,0.2925]
[1757649201974,0.7247,4507.7,4507.1,0.2925]
[1757649202173,0.7247,4507.7,4507.6,0.2098]
[1757649202581,0.7247,4507.7,4507.6,0.7084]
[1757649207588,0.2032,4507.7,4507.6,0.7084]
[1757649208089,0.2032,4507.7,4507.5,0.1262]
[1757649208090,0.0568,4508.5,4507.7,0.312]
[1757649208292,0.6885,4508.4,4508.3,0.5221]
[1757649208591,0.6885,4508.4,4508.3,0.2101]
[1757649208890,0.6885,4508.4,4508.0,0.312]
[1757649209195,0.6885,4508.4,4507.6,0.312]
[1757649211091,0.6885,4508.4,4508.3,0.2101]
[1757649211290,0.6885,4508.4,4508.3,0.5221]
[1757649211793,0.6885,4508.4,4508.3,0.2101]
[1757649212694,1.23279313,4508.4,4508.0,0.312]
[1757649212889,1.23279313,4508.4,4507.6,0.312]
[1757649212890,1.97919293,4508.4,4507.6,0.312]
[1757649213192,0.6885,4507.2,4507.1,0.2101]
[1757649213391,0.6885,4507.2,4507.1,0.7227]
[1757649214289,0.4904,4506.2,4506.1,0.7227]
[1757649214495,0.6885,4506.2,4506.1,0.7227]
[1757649215790,0.6885,4506.2,4506.1,0.5221]
[1757649215987,0.6885,4506.2,4505.6,0.312]
[1757649216188,0.6885,4506.2,4505.8,0.312]
[1757649216394,0.6885,4506.2,4505.6,0.312]
[1757649216694,0.6885,4506.2,4505.7,0.27769036]
[1757649216895,0.6885,4506.2,4505.6,0.312]
[1757649217094,0.6885,4506.2,4505.7,0.27768712]
[1757649217305,0.6885,4506.2,4505.8,0.312]
[1757649217596,0.397,4505.9,4505.2,0.312]
[1757649217786,0.6885,4505.4,4505.3,0.7998696]
[1757649217991,0.6885,4505.4,4505.3,1.0004696]
[1757649220285,0.6885,4505.4,4505.3,0.4878696]
[1757649220692,0.6885,4505.4,4505.3,1.0004696]
[1757649222694,0.6885,4505.4,4505.3,0.99794416]
[1757649222695,0.4896,4505.4,4505.3,0.99794416]
[1757649223393,0.2915,4505.7,4505.4,0.312]
[1757649223596,0.4896,4505.7,4505.6,0.7227]
[1757649223793,0.4896,4505.7,4505.6,0.99794416]
[1757649225187,0.4896,4506.4,4506.3,0.4107]
[1757649225387,0.4896,4506.4,4506.3,0.7227]
[1757649225688,0.6885,4506.4,4506.3,0.7227]
[1757649225894,1.22540325,4506.4,4506.3,0.7227]
[1757649226101,0.6885,4506.4,4506.3,0.7227]
[1757649227701,0.4896,4506.4,4506.3,0.7227]
[1757649227893,0.6885,4506.4,4506.3,0.7227]
[1757649230696,0.6885,4506.4,4506.0,0.312]
[1757649231096,0.6885,4506.4,4505.5,0.127]
[1757649231298,0.6885,4506.4,4505.6,0.312]
[1757649239109,0.6974,4505.7,4505.6,0.7021]
[1757649240209,0.6974,4505.7,4505.1,0.2953]